bitfinex-derivatives/quotes_ETHF0:USTF0_20250115
["timestamp","ask_amount","ask_price","bid_price","bid_amount"]
[1736954007123,3.27978484,3340.5,3340.0,0.59882]
[1736954007124,0.5988,3340.2,3340.0,0.59882]
[1736954007324,3.27978484,3340.5,3339.9,0.59884]
[1736954007325,0.59882,3340.1,3339.9,0.59884]
[1736954007721,3.2078,3340.6,3339.7,42.279]
[1736954007921,0.5988,3340.2,3339.7,42.279]
[1736954008124,0.59877,3340.4,3339.7,42.279]
[1736954008326,3.2078,3340.6,3339.8,1.49717]
[1736954008525,3.2078,3340.6,3340.5,0.59874]
[1736954008827,3.80652,3340.6,3340.5,0.59874]
[1736954009023,3.2078,3340.6,3340.5,0.59874]
[1736954009328,0.59861,3341.3,3340.6,2.09553]
[1736954009522,0.59862,3341.2,3341.0,0.59863]
[1736954009923,3.2078,3341.4,3340.6,1.49681]
[1736954010125,0.5986,3341.3,3341.1,0.59862]
[1736954010324,4.05178804,3341.3,3341.1,0.59862]
[1736954010532,0.59853,3341.7,3340.9,3.2078]
[1736954010828,0.59855,3341.6,3341.4,0.59856]
[1736954011031,3.2078,3341.8,3340.9,3.2078]
[1736954011229,3.80632,3341.8,3341.7,0.59852]
[1736954011530,3.80632,3341.8,3341.6,0.59853]
[1736954011720,3.80632,3341.8,3341.5,0.59855]
[1736954011721,0.59853,3341.7,3341.5,0.59855]
[1736954011928,0.59853,3341.7,3341.6,0.59854]
[1736954012122,3.2078,3341.8,3341.3,1.479]
[1736954012322,0.59853,3341.7,3341.3,1.479]
[1736954012527,0.59857,3341.5,3341.3,2.07758]
[1736954012728,3.46299338,3341.7,3341.4,0.59858]
[1736954012729,4.06152338,3341.7,3341.4,0.59858]
[1736954012925,0.9155,3341.9,3341.3,1.479]
[1736954013132,3.2078,3342.6,3341.5,3.2078]
[1736954013425,3.2078,3342.2,3341.5,3.2078]
[1736954013626,3.2078,3342.2,3341.3,1.479]
[1736954013830,0.59853,3341.7,3341.5,0.59855]
[1736954014028,0.59856,3341.5,3341.4,0.59857]
[1736954014334,3.37925075,3341.6,3341.5,0.59855]
[1736954014525,3.2078,3341.8,3341.0,4.2048]
[1736954014727,0.5986,3341.3,3341.1,0.59861]
[1736954014921,4.70408,3341.8,3341.1,0.59861]
[1736954014922,0.59861,3341.2,3341.1,0.59861]
[1736954015125,0.59865,3341.0,3340.6,3.2078]
[1736954015333,3.80645,3341.0,3340.9,0.59867]
[1736954015837,3.80645,3341.0,3340.8,0.59867]
[1736954016032,3.2078,3341.0,3340.8,0.59868]
[1736954016230,3.2078,3341.0,3340.9,0.59867]
[1736954016736,4.2127,3342.1,3342.0,0.59847]
[1736954016932,0.59841,3342.4,3341.7,2.97431]
[1736954017234,0.59843,3342.3,3342.1,0.59845]
[1736954017431,2.92401761,3342.5,3341.7,1.478]
[1736954017630,0.59846,3342.1,3341.9,0.59847]
[1736954017831,2.92401761,3342.5,3341.7,1.478]
[1736954018026,3.82193486,3342.0,3341.8,0.5985]
[1736954018228,6.43124486,3342.2,3341.7,1.478]
[1736954018434,0.5985,3341.8,3341.7,1.478]
[1736954019329,0.5985,3341.8,3341.4,0.59857]
[1736954019330,0.59856,3341.5,3341.4,0.59857]
[1736954019525,3.39559435,3341.8,3341.1,1.478]
[1736954019737,0.9701,3342.1,3341.7,0.59852]
[1736954019926,0.9701,3342.1,3341.2,3.2078]
[1736954020127,3.39559435,3342.0,3341.2,3.2078]
[1736954020333,3.2078,3342.2,3341.2,3.2078]
[1736954020334,3.2078,3342.2,3341.3,1.49649]
[1736954020541,3.2078,3342.2,3342.1,0.59845]
[1736954020938,3.2078,3342.2,3341.9,1.478]
[1736954020939,0.5984,3342.4,3341.9,1.478]
[1736954021128,0.59839,3342.5,3342.3,0.5984]
[1736954021835,0.59839,3342.5,3341.9,1.478]
[1736954021836,3.2078,3342.6,3342.4,0.59838]
[1736954022139,3.2078,3342.6,3342.5,0.59838]
[1736954022842,1.49565,3343.2,3342.1,3.36783]
[1736954022843,1.49569,3343.1,3342.1,1.8717]
[1736954023032,3.2078,3342.7,3342.0,3.2078]
[1736954023228,0.59845,3342.1,3342.0,3.2078]
[1736954023643,0.59845,3342.1,3341.6,3.2078]
[1736954023644,3.11306846,3342.1,3341.6,3.2078]
[1736954023937,0.59846,3342.1,3341.9,0.59848]
[1736954024138,3.2078,3342.5,3341.6,4.6858]
[1736954024442,3.2078,3342.5,3341.7,1.49631]
[1736954024840,3.2078,3342.5,3342.4,0.5984]
[1736954025043,3.2078,3342.5,3342.4,2.0764]
[1736954025347,0.59838,3342.5,3342.4,2.07638]
[1736954025540,0.59843,3342.2,3342.1,1.478]
[1736954026043,0.59843,3342.2,3342.1,2.07645]
[1736954026239,0.59843,3342.2,3342.1,1.478]
[1736954026839,0.59845,3342.1,3342.0,3.2078]
[1736954027544,0.59843,3342.3,3342.1,0.59845]
[1736954027732,0.59843,3342.2,3342.1,0.59845]
[1736954027932,0.59844,3342.2,3342.1,0.59845]
[1736954028152,0.59844,3342.2,3342.0,3.2078]
[1736954028439,5.0899,3342.6,3342.0,3.2078]
[1736954028947,0.59845,3342.1,3342.0,3.80626]
[1736954029841,3.2078,3342.2,3341.5,4.6858]
[1736954030543,0.59854,3341.6,3341.5,5.28435]
[1736954030743,0.59853,3341.7,3341.5,4.6858]
[1736954030933,0.59853,3341.7,3341.6,0.59854]
[1736954031451,3.30249644,3342.1,3341.5,4.6858]
[1736954031744,0.59854,3341.6,3341.5,4.6858]
[1736954031939,0.59854,3341.6,3341.5,5.28436]
[1736954032142,0.59853,3341.7,3341.6,0.59852]
[1736954032345,3.30249644,3342.1,3341.5,4.6858]
[1736954032637,0.59854,3341.6,3341.5,5.28435]
[1736954032840,0.59854,3341.6,3341.5,5.28436]
[1736954033033,0.59854,3341.6,3341.5,4.6858]
[1736954033233,0.59854,3341.6,3340.9,1.73529973]
[1736954033234,3.2078,3341.8,3340.5,3.2078]
[1736954033437,0.59867,3340.9,3340.8,1.476]
[1736954033638,3.2078,3341.0,3340.1,3.2078]
[1736954033838,4.67653586,3340.9,3339.9,12.253]
[1736954034139,4.17226586,3340.9,3339.9,12.253]
[1736954034443,0.59883,3340.0,3339.9,12.253]
[1736954036444,0.59886,3339.8,3339.7,0.59888]
[1736954036641,0.59886,3339.9,3339.7,2.07488]
[1736954036947,0.59886,3339.9,3339.7,2.07487]
[1736954037143,3.2078,3340.4,3339.7,1.476]
[1736954037335,0.59886,3339.9,3339.8,0.59886]
[1736954037541,3.2078,3340.8,3339.7,1.476]
[1736954037744,0.59867,3340.9,3340.8,0.59867]
[1736954038042,4.1213,3341.3,3340.7,1.476]
[1736954038242,4.1213,3341.3,3340.7,2.07469]
[1736954038447,0.59868,3340.8,3340.7,2.07469]
[1736954038638,3.22538518,3341.2,3340.7,1.476]
[1736954039049,0.59868,3340.8,3340.7,2.07469]
[1736954039445,0.59868,3340.9,3340.7,42.87469]
[1736954039756,0.59868,3340.9,3340.8,0.59868]
[1736954039945,4.1213,3341.3,3340.7,42.276]
[1736954040146,3.2078,3341.3,3340.7,42.276]
[1736954040652,0.59868,3340.8,3340.7,42.276]
[1736954040845,3.2078,3341.3,3340.3,1.0004]
[1736954041143,0.59879,3340.2,3340.1,3.2078]
[1736954041344,0.59882,3340.1,3339.9,2.07483]
[1736954041546,0.59883,3340.0,3339.9,1.476]
[1736954041852,0.59883,3340.0,3339.6,44.0078]
[1736954041853,0.59886,3339.8,3339.7,0.59887]
[1736954042045,0.59888,3339.7,3339.6,44.0078]
[1736954042248,0.59897,3339.2,3339.1,1.476]
[1736954042446,2.92716099,3339.2,3338.4,2.4764]
[1736954042649,0.5991,3338.5,3338.4,3.2078]
[1736954042953,1.49748,3339.1,3338.4,3.2078]
[1736954043148,0.59909,3338.6,3338.4,3.80691]
[1736954043543,2.09647,3339.1,3338.4,3.80691]
[1736954043846,1.0012,3339.2,3338.5,0.59908]
[1736954043847,0.59907,3338.7,3338.5,0.59908]
[1736954044049,0.59908,3338.6,3338.5,0.5991]
[1736954044252,0.59914,3338.3,3338.1,11.37716]
[1736954044651,3.2078,3338.9,3338.1,10.778]
[1736954044952,0.59911,3338.5,3338.2,0.59915]
[1736954045143,0.59912,3338.4,3338.2,0.59915]
[1736954045450,3.2078,3338.9,3338.1,12.254]
[1736954045645,0.59907,3338.7,3338.5,0.59909]
[1736954045851,0.59907,3338.7,3338.5,2.07609]
[1736954046050,0.59905,3338.8,3338.5,1.477]
[1736954046252,0.59898,3339.2,3339.0,0.59901]
[1736954046457,3.2078,3339.7,3339.0,3.2078]
[1736954046650,0.59898,3339.2,3339.0,0.599]
[1736954046852,3.2078,3339.7,3338.6,3.2078]
[1736954047150,3.2078,3339.7,3339.6,0.5989]
[1736954047353,3.2078,3339.7,3339.0,3.2078]
[1736954047354,1.0039,3339.9,3339.3,1.477]
[1736954047556,3.2078,3340.2,3339.4,3.2078]
[1736954047753,3.2078,3340.2,3339.8,0.59886]
[1736954047957,0.59884,3340.0,3339.8,0.59886]
[1736954048254,3.1852773,3340.0,3339.3,1.477]
[1736954048445,3.1852773,3339.5,3338.2,3.2078]
[1736954048647,3.2078,3338.6,3337.8,3.2078]
[1736954048844,3.2078,3338.1,3337.3,0.9395]
[1736954049049,0.59929,3337.5,3337.2,4.49581097]
[1736954049257,0.59925,3337.7,3337.2,4.49581097]
[1736954049453,0.59926,3337.6,3337.2,4.49581097]
[1736954049749,3.2078,3338.1,3337.2,4.49581097]
[1736954049750,0.59925,3337.7,3337.4,0.59928]
[1736954049954,0.59925,3337.7,3337.5,0.59927]
[1736954050155,3.67762319,3338.0,3337.4,0.59928]
[1736954050357,0.59926,3337.6,3337.4,0.59928]
[1736954050557,3.07843319,3338.0,3337.2,3.2078]
[1736954050761,0.59922,3337.9,3337.2,3.2078]
[1736954051059,0.59919,3338.0,3337.8,0.59922]
[1736954051251,3.2078,3338.1,3337.2,3.2078]
[1736954051457,0.5992,3338.0,3337.8,0.59921]
[1736954051652,3.80697,3338.1,3337.3,1.49829]
[1736954051854,3.80697,3338.1,3337.2,3.2078]
[1736954051855,0.59919,3338.0,3337.7,0.59923]
[1736954052049,0.59924,3337.7,3337.5,0.59926]
[1736954052255,3.2078,3338.1,3337.2,3.2078]
[1736954052459,3.29923389,3338.0,3337.2,3.2078]
[1736954052663,0.59928,3337.5,3337.3,0.5993]
[1736954053051,3.29923389,3338.0,3337.2,3.2078]
[1736954053258,3.2078,3337.7,3337.2,3.2078]
[1736954053459,0.59931,3337.3,3337.2,3.2078]
[1736954054461,2.85369284,3337.6,3337.2,3.2078]
[1736954054656,7.3634773,3338.5,3337.2,3.2078]
[1736954055165,0.59913,3338.3,3337.8,0.59921]
[1736954055359,0.59917,3338.1,3337.8,0.59922]
[1736954055663,0.59917,3338.1,3337.7,3.2078]
[1736954055664,3.27125196,3338.3,3338.1,0.59916]
[1736954055861,0.9947,3338.4,3337.7,3.2078]
[1736954056058,0.9947,3338.4,3338.1,3.2078]
[1736954056257,3.2078,3338.5,3338.1,3.2078]
[1736954056464,0.59914,3338.3,3337.7,3.2078]
[1736954056761,0.59907,3338.7,3338.4,0.59911]
[1736954056958,0.59904,3338.8,3338.3,0.59913]
[1736954057159,3.22416993,3338.6,3338.1,3.2078]
[1736954057359,3.22416993,3338.7,3338.5,0.5991]
[1736954057561,1.49728,3339.6,3338.5,0.5991]
[1736954057562,0.59896,3339.3,3339.0,0.59899]
[1736954057860,3.39979662,3338.9,3338.7,0.59906]
[1736954058061,3.39979662,3338.9,3338.6,3.2078]
[1736954058263,3.39979662,3338.9,3338.8,0.59904]
[1736954058571,0.599,3339.1,3338.9,0.59902]
[1736954058764,3.2078,3339.4,3338.4,1.477]
[1736954058962,0.59903,3338.9,3338.7,0.59905]
[1736954059264,3.2078,3339.0,3337.9,3.2078]
[1736954059473,3.2078,3338.5,3337.9,3.2078]
[1736954059669,3.2078,3338.5,3337.2,1.4983]
[1736954059670,6.3930773,3338.5,3337.5,4.6848]
[1736954059870,1.9843,3338.9,3338.0,4.70576]
[1736954060164,0.59907,3338.7,3338.5,0.59909]
[1736954060362,0.9795,3338.9,3338.1,1.477]
[1736954060566,0.9795,3338.9,3338.4,3.2078]
[1736954060773,0.59897,3339.3,3338.9,0.59902]
[1736954061068,0.59898,3339.2,3339.0,0.599]
[1736954061268,1.0048,3339.4,3338.8,3.2078]
[1736954061468,0.59899,3339.2,3339.0,0.599]
[1736954061768,1.0048,3339.4,3339.0,0.59901]
[1736954061966,1.0048,3339.4,3338.8,3.2078]
[1736954061967,0.9795,3339.7,3338.8,3.2078]
[1736954062161,0.9795,3339.7,3339.2,3.2078]
[1736954062360,3.2078,3340.0,3339.2,3.2078]
[1736954062560,3.2078,3340.0,3339.6,3.2078]
[1736954062763,0.59885,3339.9,3339.7,0.59887]
[1736954062963,3.20328413,3339.9,3339.1,1.478]
[1736954063262,0.59891,3339.6,3339.4,0.59893]
[1736954063459,3.20328413,3339.9,3339.1,4.6858]
[1736954063460,7.90820413,3339.9,3339.1,4.6858]
[1736954063658,0.59897,3339.2,3339.1,3.2078]
[1736954064069,0.59901,3339.1,3338.9,0.59902]
[1736954064375,0.59902,3339.0,3338.8,1.58283]
[1736954064578,4.1644,3339.5,3338.6,3.2078]
[1736954064771,0.59906,3338.7,3338.6,3.2078]
[1736954065176,3.2078,3339.0,3338.4,1.476]
[1736954065379,0.5991,3338.5,3338.4,2.07511]
[1736954065576,0.5991,3338.5,3338.4,1.476]
[1736954066366,4.70536,3339.0,3338.2,3.2078]
[1736954066367,0.59913,3338.3,3338.2,3.2078]
[1736954066874,1.49761,3338.8,3337.9,0.59919]
[1736954066875,0.59917,3338.1,3337.9,0.59919]
[1736954067068,3.2078,3338.6,3337.6,3.2078]
[1736954067270,3.18794864,3338.5,3337.2,5.1329]
[1736954067467,3.18794864,3338.5,3337.3,1.476]
[1736954067468,2.46197,3338.5,3337.3,1.476]
[1736954067673,1.49784,3338.3,3337.3,1.476]
[1736954067877,3.44083656,3338.4,3337.6,3.2078]
[1736954068079,2.46197,3338.5,3337.6,3.2078]
[1736954068280,0.59924,3337.7,3337.6,3.2078]
[1736954068782,0.59924,3337.7,3337.6,3.80706]
[1736954068978,0.59924,3337.7,3337.6,3.2078]
[1736954069279,3.2078,3338.5,3337.6,8.2078]
[1736954069478,0.9642,3339.4,3338.2,3.2078]
[1736954069687,0.9642,3339.4,3338.7,3.2078]
[1736954069884,0.59897,3339.2,3339.1,3.2078]
[1736954070087,4.70492,3339.9,3339.1,3.2078]
[1736954070289,0.59897,3339.2,3339.1,3.2078]
[1736954070588,3.46660284,3339.7,3339.5,0.59891]
[1736954070794,1.0077,3340.0,3339.2,3.2078]
[1736954070989,0.59895,3339.4,3339.2,3.2078]
[1736954071182,1.49706,3340.1,3339.2,3.2078]
[1736954071384,0.59883,3340.0,3339.9,0.59884]
[1736954071585,5.1759,3340.2,3339.6,3.2078]
[1736954071786,4.172,3340.2,3339.8,0.59886]
[1736954071988,0.59884,3340.0,3339.8,0.59886]
[1736954072185,0.59872,3340.6,3340.4,0.59875]
[1736954072385,1.0088,3341.3,3340.5,3.2078]
[1736954072588,1.0088,3341.3,3341.0,0.59864]
[1736954072589,1.60741,3341.3,3341.0,0.59864]
[1736954072788,1.60741,3341.3,3340.5,3.2078]
[1736954072789,1.0088,3341.3,3340.7,1.476]
[1736954073193,0.59861,3341.2,3340.7,1.476]
[1736954073383,1.0088,3341.3,3340.7,1.476]
[1736954073592,1.0088,3341.3,3340.6,4.1605]
[1736954073593,0.5987,3340.7,3340.6,4.1605]
[1736954073785,0.5987,3340.7,3340.3,0.9694]
[1736954073786,3.2078,3340.9,3340.3,0.9694]
[1736954073988,0.59875,3340.5,3340.3,0.9694]
[1736954074399,3.11367564,3341.1,3340.3,0.9694]
[1736954074590,3.2078,3340.8,3340.1,3.2078]
[1736954074790,6.32440685,3340.8,3340.1,3.2078]
[1736954075098,3.2078,3340.8,3340.1,3.2078]
[1736954075294,3.11660685,3340.7,3340.1,3.2078]
[1736954075493,0.59881,3340.1,3340.0,1.476]
[1736954075794,4.70453,3340.8,3340.0,1.476]
[1736954075795,0.59878,3340.3,3340.0,1.476]
[1736954075991,0.59881,3340.1,3340.0,1.476]
[1736954076191,4.64042536,3340.7,3340.0,1.476]
[1736954076394,0.59881,3340.1,3340.0,1.476]
[1736954076585,0.59888,3339.7,3339.6,3.2078]
[1736954076988,1.49712,3339.9,3338.8,4.6828]
[1736954077191,3.2078,3340.0,3338.8,1.475]
[1736954077192,0.59903,3338.9,3338.8,1.475]
[1736954077393,0.59903,3338.9,3338.7,2.53685]
[1736954077597,3.2078,3339.6,3338.7,0.9872]
[1736954077797,0.59897,3339.3,3339.0,0.599]
[1736954077993,3.2078,3339.6,3338.8,3.2078]
[1736954077994,0.59894,3339.4,3338.8,3.2078]
[1736954078201,0.59895,3339.4,3339.1,0.59898]
[1736954078395,0.9161,3340.0,3338.8,3.2078]
[1736954078589,0.9161,3340.0,3339.2,0.59896]
[1736954078798,0.59896,3339.3,3339.0,0.599]
[1736954079003,3.2078,3339.7,3338.8,3.2078]
[1736954079392,3.39091155,3339.6,3338.8,3.2078]
[1736954079593,3.2078,3339.7,3338.8,3.2078]
[1736954079794,0.59898,3339.2,3338.9,0.59901]
[1736954080095,0.59894,3339.5,3338.8,3.2078]
[1736954080396,3.42500117,3339.6,3338.8,3.2078]
[1736954080604,0.59903,3338.9,3338.8,3.2078]
[1736954080794,0.59906,3338.8,3338.5,0.59909]
[1736954081100,0.59907,3338.7,3338.5,0.59909]
[1736954081299,5.63971,3339.3,3338.4,4.6828]
[1736954081502,0.5991,3338.5,3338.4,4.6828]
[1736954081801,3.2078,3338.9,3338.4,5.28192]
[1736954082099,3.2078,3338.9,3338.4,4.6828]
[1736954082100,0.5991,3338.5,3338.4,4.6828]
[1736954082399,4.1423,3339.3,3338.4,4.6828]
[1736954082903,3.33063101,3338.9,3338.4,3.2078]
[1736954083105,0.5991,3338.5,3338.4,3.2078]
[1736954083293,0.59914,3338.3,3338.1,42.33446]
[1736954083500,0.59914,3338.3,3338.1,1.53446]
[1736954084000,4.70538,3338.9,3338.0,40.8]
[1736954084001,3.2078,3338.9,3338.0,40.8]
[1736954084193,3.2078,3338.9,3337.8,3.2078]
[1736954084194,1.49767,3338.7,3337.6,0.24606681]
[1736954084393,3.2078,3338.3,3337.5,2.3903]
[1736954084599,0.59923,3337.8,3337.6,0.59926]
[1736954084801,0.59923,3337.8,3337.7,0.59924]
[1736954085307,0.59926,3337.6,3337.5,2.3903]
[1736954085497,3.2078,3338.0,3337.2,0.59932]
[1736954085700,2.0973,3337.8,3337.0,5.28316]
[1736954086002,0.59939,3336.9,3336.8,0.933]
[1736954086399,1.49821,3337.5,3336.6,45.4838]
[1736954086400,1.49825,3337.4,3336.6,45.4838]
[1736954086595,1.49825,3337.4,3336.5,0.23765632]
[1736954086596,0.59942,3336.7,3336.5,0.23765632]
[1736954086803,3.2078,3336.8,3336.2,3.2078]
[1736954086995,4.1625,3337.3,3336.2,3.2078]
[1736954087201,3.2078,3337.3,3336.7,3.2078]
[1736954087496,0.9547,3338.0,3337.1,3.2078]
[1736954087704,0.59921,3337.9,3337.5,3.80707]
[1736954087902,4.25565317,3338.0,3337.5,3.2078]
[1736954088103,3.30095317,3337.8,3337.6,0.59926]
[1736954088299,3.2078,3338.3,3337.6,40.8]
[1736954088605,3.80418257,3338.2,3337.7,0.59923]
[1736954088999,3.20503257,3338.2,3337.6,40.8]
[1736954089898,0.59918,3338.1,3337.8,0.59922]
[1736954090098,3.20503257,3338.2,3337.6,41.39925]
[1736954090296,0.59928,3337.6,3337.1,4.1864]
[1736954090498,3.2078,3337.9,3337.1,3.2078]
[1736954090697,3.78849,3337.5,3337.3,0.59931]
[1736954090891,3.78849,3337.5,3337.1,3.2078]
[1736954090892,0.5993,3337.4,3337.2,0.59933]
[1736954091096,0.59929,3337.5,3337.2,0.59933]
[1736954091307,0.59931,3337.4,3337.1,3.80714]
[1736954091507,3.40202469,3337.8,3337.1,3.2078]
[1736954091797,0.59932,3337.3,3337.1,3.80714]
[1736954092398,0.59933,3337.2,3337.1,3.2078]
[1736954092603,3.2078,3337.9,3337.1,3.2078]
[1736954092803,0.59925,3337.7,3337.5,0.59927]
[1736954093004,3.35280022,3337.7,3337.1,3.2078]
[1736954093300,3.2078,3337.9,3337.1,3.2078]
[1736954093506,3.2078,3337.9,3336.7,46.4148]
[1736954093805,3.2078,3337.3,3336.9,0.59937]
[1736954094005,3.80712,3337.3,3337.1,0.59934]
[1736954094212,3.2078,3337.7,3336.7,46.4148]
[1736954094598,0.59931,3337.4,3336.7,46.4148]
[1736954094798,3.29161518,3337.6,3337.2,0.59933]
[1736954095003,3.2078,3337.7,3336.7,46.4148]
[1736954095203,2.0098,3338.2,3337.6,3.2078]
[1736954095512,3.2078,3338.5,3338.2,0.59915]
[1736954095513,0.59913,3338.4,3338.2,0.59915]
[1736954095818,3.2078,3338.5,3337.6,3.2078]
[1736954095998,3.2078,3338.5,3337.6,4.70596]
[1736954096195,0.59918,3338.1,3337.9,0.5992]
[1736954096399,3.35705439,3338.4,3337.9,0.5992]
[1736954096605,0.5992,3338.0,3337.8,0.59921]
[1736954096913,0.5992,3338.0,3337.3,3.2078]
[1736954096914,3.2078,3338.0,3337.3,3.2078]
[1736954097396,0.59929,3337.5,3337.3,3.80711]
[1736954097603,0.59926,3337.6,3337.3,3.2078]
[1736954097802,0.59925,3337.7,3337.5,0.59928]
[1736954098002,3.2078,3338.0,3337.3,3.2078]
[1736954098202,0.59927,3337.6,3337.4,0.59929]
[1736954098410,3.2078,3338.0,3337.3,3.2078]
[1736954098603,0.5993,3337.4,3337.3,3.2078]
[1736954098805,3.46433016,3337.5,3336.9,3.2078]
[1736954099108,0.59937,3337.0,3336.8,0.5994]
[1736954099303,0.5994,3336.9,3336.7,0.59942]
[1736954099508,3.29628726,3336.9,3336.5,4.1893]
[1736954099704,3.2078,3337.2,3336.5,1.58095]
[1736954099905,1.49831,3337.3,3336.5,0.9815]
[1736954099906,0.59943,3336.7,3336.5,0.9815]
[1736954100107,0.59943,3336.7,3336.5,1.58096]
[1736954100108,0.59942,3336.7,3336.5,1.58096]
[1736954100403,3.29628726,3337.1,3336.5,1.58096]
[1736954100404,3.29628726,3337.2,3336.6,3.2078]
[1736954100712,0.59942,3336.7,3336.6,3.2078]
[1736954100908,3.2078,3336.9,3336.1,0.9469]
[1736954101109,0.59955,3336.0,3335.9,40.8]
[1736954101409,3.2078,3336.1,3335.8,0.59958]
[1736954101714,3.2078,3336.1,3335.7,4.1941]
[1736954101908,0.59958,3335.9,3335.7,4.1941]
[1736954102210,0.59955,3336.0,3335.4,0.59965]
[1736954102396,0.59958,3335.8,3335.3,4.1953]
[1736954102601,3.2078,3336.1,3335.3,4.1953]
[1736954102602,3.19926639,3336.0,3335.4,40.8]
[1736954102801,3.2078,3336.1,3335.4,40.8]
[1736954103005,3.2078,3335.7,3335.0,0.9863]
[1736954103509,0.9369,3336.6,3335.0,0.9863]
[1736954103510,6.40706639,3335.6,3335.0,0.9863]
[1736954103713,0.59973,3335.0,3334.9,3.2078]
[1736954104105,0.59973,3335.0,3334.2,0.9963]
[1736954104106,3.44805011,3335.0,3334.2,0.9963]
[1736954104412,0.59985,3334.3,3334.2,0.9963]
[1736954104614,3.2078,3334.9,3333.9,0.9989]
[1736954104814,0.59988,3334.2,3333.9,0.9989]
[1736954105017,0.59988,3334.2,3333.9,41.7989]
[1736954105207,3.2078,3334.5,3333.9,0.9989]
[1736954105407,3.2078,3335.4,3334.4,3.2078]
[1736954105614,3.2078,3336.4,3335.2,3.2078]
[1736954105817,0.59956,3336.0,3335.2,3.2078]
[1736954106011,0.59954,3336.1,3335.6,0.59962]
[1736954106210,0.59957,3335.9,3335.5,0.59963]
[1736954106411,4.2199,3336.4,3335.3,1.9952]
[1736954106606,4.2199,3336.4,3335.6,3.2078]
[1736954106810,3.4551216,3336.3,3335.6,3.2078]
[1736954107009,3.2078,3337.1,3336.0,3.2078]
[1736954107309,0.59951,3336.2,3336.1,1.475]
[1736954107618,3.2078,3336.7,3335.7,1.475]
[1736954107819,0.59954,3336.1,3335.7,2.0746]
[1736954108014,4.1641,3336.7,3335.6,3.2078]
[1736954108015,0.59951,3336.2,3335.6,3.2078]
[1736954108214,0.59961,3335.7,3335.3,1.9952]
[1736954108515,3.25528167,3336.1,3335.3,1.9952]
[1736954108719,0.59962,3335.7,3335.3,1.9952]
[1736954108914,0.5996,3335.8,3335.4,0.59964]
[1736954109110,3.2078,3336.3,3335.3,1.9952]
[1736954109313,3.46126751,3336.2,3335.3,1.9952]
[1736954109514,3.2078,3336.3,3335.3,2.59487]
[1736954109714,3.2078,3336.3,3335.3,1.9952]
[1736954109921,3.2078,3335.9,3335.3,1.9952]
[1736954110117,3.40763217,3336.2,3334.6,0.9231]
[1736954110118,0.59977,3334.8,3334.6,0.9231]
[1736954110319,3.2078,3335.1,3334.3,3.2078]
[1736954110518,0.59984,3334.4,3334.3,3.2078]
[1736954110731,3.2078,3335.1,3334.3,3.2078]
[1736954111021,3.22150106,3335.0,3334.3,3.2078]
[1736954111323,0.59981,3334.6,3334.3,3.2078]
[1736954111618,3.2078,3335.1,3334.3,3.2078]
[1736954111619,3.31012102,3335.0,3334.3,3.2078]
[1736954111823,3.2078,3335.1,3334.7,0.59978]
[1736954111824,0.59972,3335.1,3334.7,0.59978]
[1736954112019,0.9367,3335.4,3334.3,3.2078]
[1736954112222,3.31012102,3335.0,3334.3,3.2078]
[1736954112421,3.31012102,3335.0,3334.6,0.59979]
[1736954112422,0.59974,3335.0,3334.6,0.59979]
[1736954112621,0.59977,3334.8,3334.4,0.59984]
[1736954112825,0.59977,3334.8,3334.5,0.59982]
[1736954113125,3.46984729,3335.1,3334.3,3.2078]
[1736954113424,3.2078,3335.2,3334.9,0.59973]
[1736954113622,3.2078,3335.2,3334.7,3.2078]
[1736954113923,3.2078,3336.2,3335.1,3.2078]
[1736954114117,0.59949,3336.4,3336.1,0.59953]
[1736954114320,3.31938708,3336.1,3336.0,0.59953]
[1736954114513,1.69017188,3336.1,3336.0,0.59953]
[1736954114718,1.943,3337.2,3335.9,2.97391]
[1736954114921,3.2078,3337.1,3336.5,3.2078]
[1736954115117,0.5993,3337.4,3337.2,0.59932]
[1736954115323,3.2078,3338.1,3337.4,0.59929]
[1736954115522,3.2078,3338.1,3337.5,3.2078]
[1736954115820,3.97143471,3338.0,3337.7,0.59923]
[1736954116023,5.1024,3338.5,3337.5,3.2078]
[1736954116438,0.5993,3337.4,3337.2,2.07432]
[1736954116725,0.5993,3337.5,3337.2,2.07432]
[1736954116925,3.2078,3338.1,3337.2,1.475]
[1736954117231,3.3628,3337.8,3337.7,0.59924]
[1736954117425,0.59926,3337.6,3337.5,3.2078]
[1736954117624,0.59929,3337.5,3337.2,2.07432]
[1736954117916,0.59933,3337.2,3337.1,3.2078]
[1736954119023,0.9235,3337.9,3337.0,1.475]
[1736954119221,3.2078,3337.7,3337.0,1.475]
[1736954119427,0.59935,3337.1,3337.0,1.475]
[1736954119728,3.2078,3337.3,3337.0,1.475]
[1736954119926,0.59935,3337.2,3337.0,1.475]
[1736954120128,0.59935,3337.1,3337.0,1.475]
[1736954120328,0.59935,3337.1,3336.5,3.2078]
[1736954120329,3.2078,3337.3,3336.5,3.2078]
[1736954120525,3.11975194,3337.2,3336.5,3.2078]
[1736954120731,3.2078,3337.3,3336.8,0.5994]
[1736954120931,3.2078,3337.3,3336.5,3.2078]
[1736954120932,3.2078,3337.3,3336.6,1.475]
[1736954121131,0.59947,3336.5,3336.2,0.59951]
[1736954121532,3.2078,3337.7,3336.3,4.6840073]
[1736954121729,3.2078,3338.1,3337.4,3.2078]
[1736954122033,3.1852773,3338.8,3337.4,3.2078]